[Event "Titled Tuesday Blitz May 23 Late 2023"]
[White "Caruana, Fabiano"]
[Black "Carlsen, Magnus"]
[WhiteFideId "2020009"]
[BlackFideId "1503014"]
[WhiteElo "2837"]
[BlackElo "2852"]
[Result "1-0"]
[Round "10"]
[TimeControl "180+2"]
[Date "2023.05.23"]
[WhiteClock "0:00:03"]
[BlackClock "0:00:00"]

1. d4 {[%clk 0:03:00]}  Nf6 {[%clk 0:02:55]} 2. Nf3 {[%clk 0:03:01]}  e6 {[%clk 0:02:39]} 3. g3 {[%clk 0:02:58]}  b5 {[%clk 0:02:38]} 4. Bg2 {[%clk 0:02:58]}  Bb7 {[%clk 0:02:38]} 5. O-O {[%clk 0:02:58]}  Be7 {[%clk 0:02:38]} 6. c3 {[%clk 0:02:58]}  a5 {[%clk 0:02:35]} 7. a4 {[%clk 0:02:54]}  b4 {[%clk 0:02:35]} 8. Re1 {[%clk 0:02:49]}  O-O {[%clk 0:02:18]} 9. Nbd2 {[%clk 0:02:48]}  d5 {[%clk 0:02:18]} 10. Nb3 {[%clk 0:02:47]}  Nbd7 {[%clk 0:02:17]} 11. Qc2 {[%clk 0:02:31]}  c5 {[%clk 0:02:09]} 12. dxc5 {[%clk 0:02:19]}  Nxc5 {[%clk 0:02:07]} 13. Be3 {[%clk 0:02:19]}  Nce4 {[%clk 0:01:59]} 14. Bd4 {[%clk 0:01:52]}  bxc3 {[%clk 0:01:57]} 15. bxc3 {[%clk 0:01:53]}  Rc8 {[%clk 0:01:57]} 16. Nfd2 {[%clk 0:01:42]}  Nxd2 {[%clk 0:01:42]} 17. Nxd2 {[%clk 0:01:40]}  Qc7 {[%clk 0:01:28]} 18. Rab1 {[%clk 0:00:57]}  Ba6 {[%clk 0:01:13]} 19. e4 {[%clk 0:00:39]}  h6 {[%clk 0:00:29]} 20. Bb6 {[%clk 0:00:28]}  Qxc3 {[%clk 0:00:16]} 21. Qxc3 {[%clk 0:00:29]}  Rxc3 {[%clk 0:00:17]} 22. Bxa5 {[%clk 0:00:29]}  Rc2 {[%clk 0:00:18]} 23. exd5 {[%clk 0:00:28]}  Bc5 {[%clk 0:00:18]} 24. Rec1 {[%clk 0:00:26]}  Rxc1+ {[%clk 0:00:16]} 25. Rxc1 {[%clk 0:00:27]}  Rc8 {[%clk 0:00:15]} 26. Nb3 {[%clk 0:00:25]}  Bd6 {[%clk 0:00:14]} 27. dxe6 {[%clk 0:00:23]}  Rxc1+ {[%clk 0:00:12]} 28. Nxc1 {[%clk 0:00:24]}  fxe6 {[%clk 0:00:13]} 29. Bf1 {[%clk 0:00:23]}  Bb7 {[%clk 0:00:13]} 30. Bc4 {[%clk 0:00:21]}  Kf7 {[%clk 0:00:12]} 31. Nd3 {[%clk 0:00:20]}  Nd5 {[%clk 0:00:12]} 32. Bd2 {[%clk 0:00:20]}  Nb6 {[%clk 0:00:11]} 33. Bb5 {[%clk 0:00:20]}  Bd5 {[%clk 0:00:11]} 34. a5 {[%clk 0:00:20]}  Nc4 {[%clk 0:00:11]} 35. Bc3 {[%clk 0:00:17]}  Na3 {[%clk 0:00:09]} 36. Ba4 {[%clk 0:00:18]}  Bb7 {[%clk 0:00:06]} 37. Ne5+ {[%clk 0:00:16]}  Ke7 {[%clk 0:00:06]} 38. Bb2 {[%clk 0:00:12]}  Ba6 {[%clk 0:00:05]} 39. Bb3 {[%clk 0:00:12]}  Nb5 {[%clk 0:00:04]} 40. Nc6+ {[%clk 0:00:10]}  Kf7 {[%clk 0:00:04]} 41. Bc4 {[%clk 0:00:09]}  Nc7 {[%clk 0:00:03]} 42. Bxa6 {[%clk 0:00:08]}  Nxa6 {[%clk 0:00:04]} 43. Kf1 {[%clk 0:00:08]}  Bc7 {[%clk 0:00:04]} 44. Bc3 {[%clk 0:00:07]}  g6 {[%clk 0:00:04]} 45. Ke2 {[%clk 0:00:08]}  Ke8 {[%clk 0:00:03]} 46. Kd3 {[%clk 0:00:08]}  h5 {[%clk 0:00:03]} 47. Kc4 {[%clk 0:00:08]}  Kd7 {[%clk 0:00:04]} 48. Ne5+ {[%clk 0:00:08]}  Bxe5 {[%clk 0:00:03]} 49. Bxe5 {[%clk 0:00:09]}  Kc6 {[%clk 0:00:04]} 50. Bd4 {[%clk 0:00:09]}  Nc7 {[%clk 0:00:04]} 51. Bb6 {[%clk 0:00:08]}  Nd5 {[%clk 0:00:04]} 52. Kd4 {[%clk 0:00:08]}  Kd6 {[%clk 0:00:04]} 53. Bc5+ {[%clk 0:00:08]}  Kc6 {[%clk 0:00:04]} 54. a6 {[%clk 0:00:08]}  Nf6 {[%clk 0:00:04]} 55. a7 {[%clk 0:00:08]}  Kb7 {[%clk 0:00:05]} 56. f3 {[%clk 0:00:06]}  Nd7 {[%clk 0:00:05]} 57. f4 {[%clk 0:00:06]}  Ka8 {[%clk 0:00:05]} 58. Kc4 {[%clk 0:00:06]}  e5 {[%clk 0:00:05]} 59. Kd5 {[%clk 0:00:03]}  exf4 {[%clk 0:00:04]} 60. gxf4 {[%clk 0:00:04]}  Nf6+ {[%clk 0:00:05]} 61. Ke6 {[%clk 0:00:04]}  Ne4 {[%clk 0:00:05]} 62. Be3 {[%clk 0:00:03]}  Nc3 {[%clk 0:00:04]} 63. Kf7 {[%clk 0:00:03]}  Nd5 {[%clk 0:00:04]} 64. Bd2 {[%clk 0:00:03]}  Kxa7 {[%clk 0:00:04]} 65. Kxg6 {[%clk 0:00:04]}  Kb7 {[%clk 0:00:05]} 66. f5 {[%clk 0:00:04]}  Ne7+ {[%clk 0:00:04]} 67. Kf6 {[%clk 0:00:03]}  Nd5+ {[%clk 0:00:03]} 68. Ke6 {[%clk 0:00:04]}  Kc6 {[%clk 0:00:03]} 69. f6 {[%clk 0:00:04]}  Nc7+ {[%clk 0:00:04]} 70. Ke7 {[%clk 0:00:04]}  Nd5+ {[%clk 0:00:04]} 71. Ke6 {[%clk 0:00:04]}  Nc7+ {[%clk 0:00:04]} 72. Kf5 {[%clk 0:00:04]}  Kd7 {[%clk 0:00:05]} 73. Bb4 {[%clk 0:00:04]}  Ne6 {[%clk 0:00:00]} 74. f7 {[%clk 0:00:03]} 1-0


[Site "https://www.chess.com"]

[Event "Titled Tuesday Blitz May 23 Late 2023"]
[White "Nakamura, Hikaru"]
[Black "Martinez Alcantara, Jose Eduardo"]
[WhiteFideId "2016192"]
[BlackFideId "3805662"]
[WhiteElo "2885"]
[BlackElo "2711"]
[Result "1-0"]
[Round "10"]
[TimeControl "180+2"]
[Date "2023.05.23"]
[WhiteClock "0:00:07"]
[BlackClock "0:00:02"]

1. e4 {[%clk 0:03:00]}  c5 {[%clk 0:02:58]} 2. c3 {[%clk 0:03:01]}  e6 {[%clk 0:02:58]} 3. d4 {[%clk 0:03:01]}  d5 {[%clk 0:02:59]} 4. e5 {[%clk 0:03:01]}  Nc6 {[%clk 0:02:58]} 5. Nf3 {[%clk 0:03:01]}  Qb6 {[%clk 0:02:59]} 6. Be2 {[%clk 0:03:00]}  cxd4 {[%clk 0:02:55]} 7. cxd4 {[%clk 0:03:00]}  Nge7 {[%clk 0:02:55]} 8. Na3 {[%clk 0:03:00]}  Nf5 {[%clk 0:02:53]} 9. Nc2 {[%clk 0:03:00]}  Bd7 {[%clk 0:02:49]} 10. O-O {[%clk 0:02:48]}  Be7 {[%clk 0:02:47]} 11. b3 {[%clk 0:02:36]}  Rc8 {[%clk 0:02:43]} 12. Bb2 {[%clk 0:02:34]}  h5 {[%clk 0:02:38]} 13. Nce1 {[%clk 0:02:28]}  g5 {[%clk 0:02:36]} 14. Nc2 {[%clk 0:02:25]}  g4 {[%clk 0:02:35]} 15. Nfe1 {[%clk 0:02:25]}  Rg8 {[%clk 0:02:16]} 16. Bd3 {[%clk 0:02:20]}  h4 {[%clk 0:01:36]} 17. Bxf5 {[%clk 0:02:13]}  exf5 {[%clk 0:01:37]} 18. Nd3 {[%clk 0:02:13]}  Nd8 {[%clk 0:01:27]} 19. Ne3 {[%clk 0:02:06]}  Be6 {[%clk 0:01:17]} 20. Nf4 {[%clk 0:02:06]}  Qa5 {[%clk 0:01:13]} 21. Qd3 {[%clk 0:01:55]}  Bg5 {[%clk 0:01:12]} 22. Nh5 {[%clk 0:01:50]}  Qa6 {[%clk 0:01:10]} 23. Qd1 {[%clk 0:01:22]}  Kd7 {[%clk 0:00:54]} 24. Bc1 {[%clk 0:01:02]}  g3 {[%clk 0:00:44]} 25. fxg3 {[%clk 0:00:36]}  hxg3 {[%clk 0:00:45]} 26. Nxf5 {[%clk 0:00:30]}  gxh2+ {[%clk 0:00:41]} 27. Kh1 {[%clk 0:00:29]}  Nc6 {[%clk 0:00:24]} 28. Nd6 {[%clk 0:00:24]}  Rcf8 {[%clk 0:00:08]} 29. b4 {[%clk 0:00:24]}  Nxb4 {[%clk 0:00:03]} 30. Rb1 {[%clk 0:00:22]}  Nc6 {[%clk 0:00:02]} 31. Rxb7+ {[%clk 0:00:22]}  Kd8 {[%clk 0:00:02]} 32. Bxg5+ {[%clk 0:00:18]}  Rxg5 {[%clk 0:00:03]} 33. Nf4 {[%clk 0:00:19]}  Rf5 {[%clk 0:00:03]} 34. Nxf5 {[%clk 0:00:18]}  Bxf5 {[%clk 0:00:03]} 35. Rb2 {[%clk 0:00:14]}  Be4 {[%clk 0:00:04]} 36. Ne6+ {[%clk 0:00:13]}  fxe6 {[%clk 0:00:01]} 37. Rxf8+ {[%clk 0:00:14]}  Ke7 {[%clk 0:00:02]} 38. Rbf2 {[%clk 0:00:12]}  Kd7 {[%clk 0:00:02]} 39. R2f7+ {[%clk 0:00:12]}  Ne7 {[%clk 0:00:03]} 40. Qb3 {[%clk 0:00:09]}  Bxg2+ {[%clk 0:00:01]} 41. Kxg2 {[%clk 0:00:08]}  Qe2+ {[%clk 0:00:01]} 42. Kh1 {[%clk 0:00:08]}  Qe4+ {[%clk 0:00:02]} 43. Qf3 {[%clk 0:00:08]}  Qb1+ {[%clk 0:00:02]} 44. Kxh2 {[%clk 0:00:08]}  Qc2+ {[%clk 0:00:02]} 45. Qg2 {[%clk 0:00:07]}  Qg6 {[%clk 0:00:02]} 46. Qxg6 {[%clk 0:00:07]} 1-0


[Site "https://www.chess.com"]

[Event "Titled Tuesday Blitz May 23 Late 2023"]
[White "Bortnyk, Olexandr"]
[Black "Svane, Rasmus"]
[WhiteFideId "14120828"]
[BlackFideId "4657101"]
[WhiteElo "2734"]
[BlackElo "2601"]
[Result "1-0"]
[Round "10"]
[TimeControl "180+2"]
[Date "2023.05.23"]
[WhiteClock "0:00:12"]
[BlackClock "0:00:00"]

1. e4 {[%clk 0:02:57]}  e5 {[%clk 0:02:57]} 2. Bc4 {[%clk 0:02:56]}  Nf6 {[%clk 0:02:57]} 3. d3 {[%clk 0:02:56]}  Bc5 {[%clk 0:02:55]} 4. Nc3 {[%clk 0:02:56]}  d6 {[%clk 0:02:43]} 5. Bg5 {[%clk 0:02:54]}  h6 {[%clk 0:02:42]} 6. Bh4 {[%clk 0:02:55]}  c6 {[%clk 0:02:43]} 7. a3 {[%clk 0:02:49]}  Be6 {[%clk 0:02:41]} 8. Bxe6 {[%clk 0:02:41]}  fxe6 {[%clk 0:02:42]} 9. Nf3 {[%clk 0:02:39]}  O-O {[%clk 0:02:40]} 10. Qe2 {[%clk 0:02:33]}  Nbd7 {[%clk 0:02:39]} 11. O-O-O {[%clk 0:02:31]}  Qe8 {[%clk 0:02:32]} 12. h3 {[%clk 0:02:28]}  Bd4 {[%clk 0:02:22]} 13. Nb1 {[%clk 0:02:24]}  b5 {[%clk 0:02:20]} 14. g4 {[%clk 0:02:15]}  Nh7 {[%clk 0:01:57]} 15. Bg3 {[%clk 0:02:02]}  Bb6 {[%clk 0:01:50]} 16. d4 {[%clk 0:01:43]}  Qf7 {[%clk 0:01:49]} 17. Nbd2 {[%clk 0:01:43]}  Bxd4 {[%clk 0:01:27]} 18. Nxd4 {[%clk 0:01:42]}  exd4 {[%clk 0:01:28]} 19. Bxd6 {[%clk 0:01:41]}  Qxf2 {[%clk 0:01:25]} 20. Qd3 {[%clk 0:01:39]}  Rfe8 {[%clk 0:01:22]} 21. e5 {[%clk 0:01:33]}  Ng5 {[%clk 0:01:03]} 22. Rde1 {[%clk 0:01:15]}  Nf7 {[%clk 0:00:36]} 23. Rhf1 {[%clk 0:01:12]}  Qh4 {[%clk 0:00:36]} 24. Qxd4 {[%clk 0:00:48]}  c5 {[%clk 0:00:33]} 25. Bxc5 {[%clk 0:00:42]}  Nxc5 {[%clk 0:00:33]} 26. Qxc5 {[%clk 0:00:42]}  Qxh3 {[%clk 0:00:33]} 27. Ne4 {[%clk 0:00:36]}  Rec8 {[%clk 0:00:28]} 28. Qe7 {[%clk 0:00:22]}  Rf8 {[%clk 0:00:19]} 29. Qxe6 {[%clk 0:00:20]}  Rae8 {[%clk 0:00:19]} 30. Qg6 {[%clk 0:00:13]}  Nh8 {[%clk 0:00:00]} 31. Nf6+ {[%clk 0:00:12]} 1-0


[Site "https://www.chess.com"]

[Event "Titled Tuesday Blitz May 23 Late 2023"]
[White "Bluebaum, Matthias"]
[Black "Dardha, Daniel"]
[WhiteFideId "24651516"]
[BlackFideId "240990"]
[WhiteElo "2639"]
[BlackElo "2581"]
[Result "1-0"]
[Round "10"]
[TimeControl "180+2"]
[Date "2023.05.23"]
[WhiteClock "0:00:12"]
[BlackClock "0:00:00"]

1. d4 {[%clk 0:03:00]}  Nf6 {[%clk 0:02:59]} 2. c4 {[%clk 0:03:01]}  e6 {[%clk 0:02:59]} 3. Nc3 {[%clk 0:03:01]}  Bb4 {[%clk 0:02:56]} 4. e3 {[%clk 0:03:02]}  O-O {[%clk 0:02:49]} 5. Bd2 {[%clk 0:03:02]}  b6 {[%clk 0:02:47]} 6. Nf3 {[%clk 0:03:00]}  Bb7 {[%clk 0:02:46]} 7. Bd3 {[%clk 0:03:01]}  d6 {[%clk 0:02:43]} 8. O-O {[%clk 0:02:59]}  Qe7 {[%clk 0:02:43]} 9. a3 {[%clk 0:03:00]}  Bxc3 {[%clk 0:02:42]} 10. Bxc3 {[%clk 0:03:00]}  Nbd7 {[%clk 0:02:39]} 11. b4 {[%clk 0:03:01]}  e5 {[%clk 0:02:38]} 12. Nd2 {[%clk 0:02:59]}  Rfe8 {[%clk 0:02:27]} 13. Bb2 {[%clk 0:02:59]}  Rac8 {[%clk 0:02:25]} 14. Rc1 {[%clk 0:02:58]}  h6 {[%clk 0:02:17]} 15. Re1 {[%clk 0:02:50]}  Nf8 {[%clk 0:02:14]} 16. d5 {[%clk 0:02:38]}  b5 {[%clk 0:01:45]} 17. e4 {[%clk 0:02:38]}  c6 {[%clk 0:01:46]} 18. dxc6 {[%clk 0:02:36]}  Rxc6 {[%clk 0:01:44]} 19. cxb5 {[%clk 0:02:36]}  Rxc1 {[%clk 0:01:45]} 20. Qxc1 {[%clk 0:02:36]}  Ne6 {[%clk 0:01:46]} 21. Qb1 {[%clk 0:02:16]}  Nh5 {[%clk 0:01:35]} 22. g3 {[%clk 0:02:09]}  Ng5 {[%clk 0:01:27]} 23. Bf1 {[%clk 0:01:59]}  Qe6 {[%clk 0:01:26]} 24. Qd1 {[%clk 0:01:38]}  Nf6 {[%clk 0:01:19]} 25. f3 {[%clk 0:01:30]}  d5 {[%clk 0:01:13]} 26. h4 {[%clk 0:01:07]}  Ngh7 {[%clk 0:00:49]} 27. exd5 {[%clk 0:00:56]}  Qxd5 {[%clk 0:00:50]} 28. Bc4 {[%clk 0:00:56]}  Qd8 {[%clk 0:00:47]} 29. Qe2 {[%clk 0:00:46]}  e4 {[%clk 0:00:42]} 30. Qf2 {[%clk 0:00:46]}  exf3 {[%clk 0:00:33]} 31. Rxe8+ {[%clk 0:00:47]}  Qxe8 {[%clk 0:00:33]} 32. Nxf3 {[%clk 0:00:31]}  Qe4 {[%clk 0:00:20]} 33. Be2 {[%clk 0:00:32]}  Qb1+ {[%clk 0:00:16]} 34. Bf1 {[%clk 0:00:30]}  Bxf3 {[%clk 0:00:14]} 35. Bxf6 {[%clk 0:00:30]}  Nxf6 {[%clk 0:00:15]} 36. Qxf3 {[%clk 0:00:30]}  Qb2 {[%clk 0:00:11]} 37. Qa8+ {[%clk 0:00:26]}  Kh7 {[%clk 0:00:11]} 38. Qxa7 {[%clk 0:00:26]}  Ne4 {[%clk 0:00:06]} 39. Qe3 {[%clk 0:00:24]}  f5 {[%clk 0:00:05]} 40. b6 {[%clk 0:00:24]}  Qf6 {[%clk 0:00:01]} 41. Bd3 {[%clk 0:00:19]}  Qa1+ {[%clk 0:00:01]} 42. Bf1 {[%clk 0:00:16]}  Qf6 {[%clk 0:00:01]} 43. b7 {[%clk 0:00:17]}  Qd6 {[%clk 0:00:01]} 44. Bd3 {[%clk 0:00:16]}  Nxg3 {[%clk 0:00:00]} 45. Qf3 {[%clk 0:00:12]} 1-0


[Site "https://www.chess.com"]

[Event "Titled Tuesday Blitz May 23 Late 2023"]
[White "Remizov, Yaroslav"]
[Black "Sjugirov, Sanan"]
[WhiteFideId "34134015"]
[BlackFideId "4189302"]
[WhiteElo "2400"]
[BlackElo "2569"]
[Result "1-0"]
[Round "10"]
[TimeControl "180+2"]
[Date "2023.05.23"]
[WhiteClock "0:00:22"]
[BlackClock "0:00:00"]

1. e4 {[%clk 0:03:00]}  c5 {[%clk 0:02:59]} 2. Nf3 {[%clk 0:02:59]}  d6 {[%clk 0:02:59]} 3. d4 {[%clk 0:02:57]}  cxd4 {[%clk 0:03:00]} 4. Nxd4 {[%clk 0:02:58]}  Nf6 {[%clk 0:03:01]} 5. Nc3 {[%clk 0:02:58]}  a6 {[%clk 0:03:01]} 6. Bg5 {[%clk 0:02:58]}  e6 {[%clk 0:03:01]} 7. f4 {[%clk 0:02:57]}  Qb6 {[%clk 0:03:01]} 8. Qd2 {[%clk 0:02:47]}  Nc6 {[%clk 0:03:01]} 9. O-O-O {[%clk 0:02:41]}  Nxd4 {[%clk 0:02:54]} 10. Qxd4 {[%clk 0:02:42]}  Qxd4 {[%clk 0:02:55]} 11. Rxd4 {[%clk 0:02:43]}  h6 {[%clk 0:02:50]} 12. Bh4 {[%clk 0:02:32]}  Ng4 {[%clk 0:02:24]} 13. Be2 {[%clk 0:02:23]}  g5 {[%clk 0:02:12]} 14. Be1 {[%clk 0:02:00]}  Nf6 {[%clk 0:01:50]} 15. e5 {[%clk 0:01:59]}  dxe5 {[%clk 0:01:44]} 16. fxe5 {[%clk 0:01:57]}  Nd7 {[%clk 0:01:44]} 17. Ne4 {[%clk 0:01:52]}  Nxe5 {[%clk 0:00:46]} 18. Bc3 {[%clk 0:01:33]}  Bg7 {[%clk 0:00:46]} 19. Nd6+ {[%clk 0:01:30]}  Kf8 {[%clk 0:00:45]} 20. Rf1 {[%clk 0:01:18]}  f5 {[%clk 0:00:41]} 21. Re4 {[%clk 0:00:44]}  Ke7 {[%clk 0:00:09]} 22. Nxc8+ {[%clk 0:00:23]}  Raxc8 {[%clk 0:00:09]} 23. Bxe5 {[%clk 0:00:24]}  fxe4 {[%clk 0:00:05]} 24. Bxg7 {[%clk 0:00:24]}  Rhg8 {[%clk 0:00:06]} 25. Bc3 {[%clk 0:00:24]}  e5 {[%clk 0:00:02]} 26. Kd2 {[%clk 0:00:22]}  Kd7 {[%clk 0:00:00]} 27. Bg4+ {[%clk 0:00:22]} 1-0


[Site "https://www.chess.com"]

[Event "Titled Tuesday Blitz May 23 Late 2023"]
[White "Sychev, Klementy"]
[Black "Mirimanian, Hayk"]
[WhiteFideId "4114060"]
[BlackFideId "4700180"]
[WhiteElo "2583"]
[BlackElo "2280"]
[Result "1-0"]
[Round "10"]
[TimeControl "180+2"]
[Date "2023.05.23"]
[WhiteClock "0:00:13"]
[BlackClock "0:00:00"]

1. e4 {[%clk 0:03:00]}  c5 {[%clk 0:02:57]} 2. Nf3 {[%clk 0:03:01]}  d6 {[%clk 0:02:56]} 3. d4 {[%clk 0:03:01]}  cxd4 {[%clk 0:02:57]} 4. Nxd4 {[%clk 0:03:01]}  Nf6 {[%clk 0:02:53]} 5. Nc3 {[%clk 0:03:02]}  a6 {[%clk 0:02:54]} 6. Bg5 {[%clk 0:03:01]}  e5 {[%clk 0:02:49]} 7. Nf5 {[%clk 0:02:44]}  Bxf5 {[%clk 0:02:43]} 8. Bxf6 {[%clk 0:02:39]}  Qxf6 {[%clk 0:02:39]} 9. Nd5 {[%clk 0:02:39]}  Qd8 {[%clk 0:02:36]} 10. exf5 {[%clk 0:02:39]}  Be7 {[%clk 0:02:34]} 11. Bc4 {[%clk 0:02:32]}  O-O {[%clk 0:02:31]} 12. Qd3 {[%clk 0:02:19]}  Nd7 {[%clk 0:02:27]} 13. O-O-O {[%clk 0:02:10]}  Nc5 {[%clk 0:02:25]} 14. Qf3 {[%clk 0:01:49]}  b5 {[%clk 0:02:23]} 15. Be2 {[%clk 0:01:49]}  Ra7 {[%clk 0:02:12]} 16. Kb1 {[%clk 0:01:45]}  Re8 {[%clk 0:01:56]} 17. h4 {[%clk 0:01:44]}  Bf8 {[%clk 0:01:08]} 18. f6 {[%clk 0:01:35]}  e4 {[%clk 0:01:07]} 19. Qe3 {[%clk 0:01:07]}  Re5 {[%clk 0:00:29]} 20. b4 {[%clk 0:00:52]}  Qa8 {[%clk 0:00:15]} 21. Ne7+ {[%clk 0:00:30]}  Bxe7 {[%clk 0:00:15]} 22. fxe7 {[%clk 0:00:31]}  Na4 {[%clk 0:00:15]} 23. Rxd6 {[%clk 0:00:29]}  Rexe7 {[%clk 0:00:14]} 24. Rhd1 {[%clk 0:00:29]}  Re8 {[%clk 0:00:12]} 25. c4 {[%clk 0:00:23]}  bxc4 {[%clk 0:00:10]} 26. Qa3 {[%clk 0:00:18]}  Rb7 {[%clk 0:00:01]} 27. Qxa4 {[%clk 0:00:17]}  a5 {[%clk 0:00:02]} 28. Qxe8+ {[%clk 0:00:13]}  Qxe8 {[%clk 0:00:02]} 29. Rd8 {[%clk 0:00:14]}  Rxb4+ {[%clk 0:00:03]} 30. Kc2 {[%clk 0:00:14]}  Kf8 {[%clk 0:00:03]} 31. Rxe8+ {[%clk 0:00:13]}  Kxe8 {[%clk 0:00:04]} 32. Rd4 {[%clk 0:00:13]}  f5 {[%clk 0:00:03]} 33. Rxc4 {[%clk 0:00:13]}  Rxc4+ {[%clk 0:00:02]} 34. Bxc4 {[%clk 0:00:13]}  Ke7 {[%clk 0:00:02]} 35. Kc3 {[%clk 0:00:13]}  Kd6 {[%clk 0:00:03]} 36. Kd4 {[%clk 0:00:13]}  h6 {[%clk 0:00:00]} 37. h5 {[%clk 0:00:13]} 1-0


[Site "https://www.chess.com"]

[Event "Titled Tuesday Blitz May 23 Late 2023"]
[White "Cordova, Emilio"]
[Black "Zemlyanskii, Ivan"]
[WhiteFideId "3801497"]
[BlackFideId "24249971"]
[WhiteElo "2607"]
[BlackElo "2421"]
[Result "0-1"]
[Round "10"]
[TimeControl "180+2"]
[Date "2023.05.23"]
[WhiteClock "0:00:23"]
[BlackClock "0:00:06"]

1. d4 {[%clk 0:03:00]}  d5 {[%clk 0:02:42]} 2. c4 {[%clk 0:03:01]}  c6 {[%clk 0:02:42]} 3. Nf3 {[%clk 0:03:02]}  Nf6 {[%clk 0:02:42]} 4. Nc3 {[%clk 0:03:02]}  dxc4 {[%clk 0:02:43]} 5. a4 {[%clk 0:03:01]}  Bf5 {[%clk 0:02:41]} 6. Nh4 {[%clk 0:03:00]}  e6 {[%clk 0:02:40]} 7. Nxf5 {[%clk 0:02:59]}  exf5 {[%clk 0:02:41]} 8. e3 {[%clk 0:02:59]}  Bb4 {[%clk 0:02:41]} 9. Bxc4 {[%clk 0:02:59]}  O-O {[%clk 0:02:42]} 10. O-O {[%clk 0:02:59]}  Nbd7 {[%clk 0:02:42]} 11. Qd3 {[%clk 0:02:55]}  g6 {[%clk 0:02:37]} 12. f3 {[%clk 0:02:55]}  c5 {[%clk 0:02:20]} 13. Na2 {[%clk 0:02:54]}  Ba5 {[%clk 0:02:20]} 14. b4 {[%clk 0:02:54]}  cxb4 {[%clk 0:02:17]} 15. Bb2 {[%clk 0:02:54]}  Rc8 {[%clk 0:02:12]} 16. Rad1 {[%clk 0:02:51]}  Bc7 {[%clk 0:02:03]} 17. Bb3 {[%clk 0:02:47]}  Qe7 {[%clk 0:02:01]} 18. Rfe1 {[%clk 0:02:27]}  Rfe8 {[%clk 0:01:52]} 19. Qd2 {[%clk 0:02:21]}  a5 {[%clk 0:01:46]} 20. Qf2 {[%clk 0:02:13]}  Nb6 {[%clk 0:01:24]} 21. e4 {[%clk 0:02:07]}  fxe4 {[%clk 0:01:15]} 22. Rxe4 {[%clk 0:01:51]}  Nxe4 {[%clk 0:01:04]} 23. fxe4 {[%clk 0:01:51]}  Nd7 {[%clk 0:00:58]} 24. Rf1 {[%clk 0:01:46]}  Rf8 {[%clk 0:00:58]} 25. e5 {[%clk 0:01:45]}  Bb6 {[%clk 0:00:54]} 26. Re1 {[%clk 0:01:24]}  Rce8 {[%clk 0:00:31]} 27. Nc1 {[%clk 0:01:14]}  Nb8 {[%clk 0:00:15]} 28. Nd3 {[%clk 0:01:10]}  Nc6 {[%clk 0:00:15]} 29. Re4 {[%clk 0:01:10]}  Rd8 {[%clk 0:00:15]} 30. h4 {[%clk 0:01:08]}  Nxd4 {[%clk 0:00:09]} 31. Bxd4 {[%clk 0:00:59]}  Rxd4 {[%clk 0:00:10]} 32. Rxd4 {[%clk 0:00:59]}  Rd8 {[%clk 0:00:10]} 33. Rxd8+ {[%clk 0:00:59]}  Qxd8 {[%clk 0:00:09]} 34. Nc5 {[%clk 0:00:59]}  Qe7 {[%clk 0:00:08]} 35. Qf4 {[%clk 0:00:51]}  Bxc5+ {[%clk 0:00:08]} 36. Kh2 {[%clk 0:00:51]}  Kg7 {[%clk 0:00:08]} 37. h5 {[%clk 0:00:51]}  gxh5 {[%clk 0:00:05]} 38. Qf5 {[%clk 0:00:48]}  Qh4+ {[%clk 0:00:05]} 39. Qh3 {[%clk 0:00:48]}  Qxh3+ {[%clk 0:00:05]} 40. Kxh3 {[%clk 0:00:48]}  Bd4 {[%clk 0:00:03]} 41. Kh4 {[%clk 0:00:47]}  Bxe5 {[%clk 0:00:03]} 42. Kxh5 {[%clk 0:00:47]}  h6 {[%clk 0:00:03]} 43. Kg4 {[%clk 0:00:47]}  Kf6 {[%clk 0:00:02]} 44. Kf3 {[%clk 0:00:47]}  Bc3 {[%clk 0:00:03]} 45. Kf4 {[%clk 0:00:47]}  Bd2+ {[%clk 0:00:02]} 46. Ke4 {[%clk 0:00:46]}  Kg6 {[%clk 0:00:02]} 47. g4 {[%clk 0:00:46]}  Kg5 {[%clk 0:00:02]} 48. Kf3 {[%clk 0:00:46]}  f6 {[%clk 0:00:02]} 49. Be6 {[%clk 0:00:46]}  Bc3 {[%clk 0:00:02]} 50. Ke4 {[%clk 0:00:46]}  b6 {[%clk 0:00:01]} 51. Kf3 {[%clk 0:00:46]}  Be1 {[%clk 0:00:02]} 52. Ke4 {[%clk 0:00:46]}  Bf2 {[%clk 0:00:02]} 53. Kf3 {[%clk 0:00:46]}  Bc5 {[%clk 0:00:03]} 54. Ke4 {[%clk 0:00:38]}  Kg6 {[%clk 0:00:02]} 55. Kf4 {[%clk 0:00:36]}  Bd6+ {[%clk 0:00:02]} 56. Ke4 {[%clk 0:00:36]}  Bc5 {[%clk 0:00:03]} 57. Kd5 {[%clk 0:00:35]}  Kg7 {[%clk 0:00:04]} 58. Ke4 {[%clk 0:00:35]}  Kf8 {[%clk 0:00:04]} 59. Kf5 {[%clk 0:00:35]}  Ke7 {[%clk 0:00:05]} 60. Bc4 {[%clk 0:00:35]}  Be3 {[%clk 0:00:05]} 61. Ke4 {[%clk 0:00:36]}  Bg5 {[%clk 0:00:05]} 62. Bb3 {[%clk 0:00:35]}  Kd6 {[%clk 0:00:05]} 63. Kd4 {[%clk 0:00:33]}  f5 {[%clk 0:00:05]} 64. gxf5 {[%clk 0:00:33]}  h5 {[%clk 0:00:05]} 65. Ke4 {[%clk 0:00:33]}  h4 {[%clk 0:00:05]} 66. Kf3 {[%clk 0:00:34]}  Ke5 {[%clk 0:00:05]} 67. Kg4 {[%clk 0:00:35]}  Bf6 {[%clk 0:00:06]} 68. Bd1 {[%clk 0:00:23]}  Kd4 {[%clk 0:00:06]} 0-1


[Site "https://www.chess.com"]